[Event "Titled Tuesday Blitz September 27 Early 2022"]
[White "Petrosyan, Manuel"]
[Black "Lazavik, Denis"]
[WhiteFideId "13300857"]
[BlackFideId "13515110"]
[WhiteElo "2592"]
[BlackElo "2437"]
[Result "1-0"]
[Round "09"]
[TimeControl "180+1"]
[Date "2022.09.27"]
[WhiteClock "0:00:25"]
[BlackClock "0:00:07"]

1. Nf3 {[%clk 0:03:00]}  d5 {[%clk 0:02:59]} 2. g3 {[%clk 0:03:00]}  Nf6 {[%clk 0:02:56]} 3. Bg2 {[%clk 0:03:01]}  e6 {[%clk 0:02:56]} 4. O-O {[%clk 0:03:01]}  Be7 {[%clk 0:02:56]} 5. c4 {[%clk 0:03:01]}  O-O {[%clk 0:02:56]} 6. d4 {[%clk 0:02:58]}  dxc4 {[%clk 0:02:56]} 7. Qc2 {[%clk 0:02:58]}  a6 {[%clk 0:02:56]} 8. a4 {[%clk 0:02:57]}  Bd7 {[%clk 0:02:56]} 9. Qxc4 {[%clk 0:02:57]}  Bc6 {[%clk 0:02:56]} 10. Bg5 {[%clk 0:02:57]}  Nbd7 {[%clk 0:02:55]} 11. Nc3 {[%clk 0:02:57]}  h6 {[%clk 0:02:55]} 12. Bxf6 {[%clk 0:02:57]}  Nxf6 {[%clk 0:02:56]} 13. b4 {[%clk 0:02:58]}  Bd5 {[%clk 0:02:52]} 14. Nxd5 {[%clk 0:02:58]}  exd5 {[%clk 0:02:53]} 15. Qb3 {[%clk 0:02:58]}  c6 {[%clk 0:02:50]} 16. e3 {[%clk 0:02:53]}  Bd6 {[%clk 0:02:47]} 17. b5 {[%clk 0:02:43]}  axb5 {[%clk 0:02:41]} 18. axb5 {[%clk 0:02:44]}  Qb6 {[%clk 0:02:40]} 19. Rab1 {[%clk 0:02:37]}  Ra3 {[%clk 0:02:27]} 20. Qb2 {[%clk 0:02:37]}  Ne4 {[%clk 0:02:09]} 21. bxc6 {[%clk 0:02:34]}  Qxb2 {[%clk 0:02:08]} 22. Rxb2 {[%clk 0:02:35]}  bxc6 {[%clk 0:02:09]} 23. Rc2 {[%clk 0:02:28]}  Rc8 {[%clk 0:01:34]} 24. Rfc1 {[%clk 0:02:13]}  c5 {[%clk 0:01:32]} 25. Nh4 {[%clk 0:02:07]}  Ra5 {[%clk 0:01:19]} 26. Nf5 {[%clk 0:01:48]}  Bf8 {[%clk 0:01:13]} 27. Bxe4 {[%clk 0:01:47]}  dxe4 {[%clk 0:01:07]} 28. g4 {[%clk 0:01:48]}  c4 {[%clk 0:00:28]} 29. Rxc4 {[%clk 0:01:43]}  Rxc4 {[%clk 0:00:28]} 30. Rxc4 {[%clk 0:01:43]}  h5 {[%clk 0:00:28]} 31. h3 {[%clk 0:01:23]}  hxg4 {[%clk 0:00:28]} 32. hxg4 {[%clk 0:01:24]}  g6 {[%clk 0:00:29]} 33. Ng3 {[%clk 0:01:20]}  Rg5 {[%clk 0:00:28]} 34. Nxe4 {[%clk 0:01:14]}  Rxg4+ {[%clk 0:00:29]} 35. Ng3 {[%clk 0:01:15]}  Bd6 {[%clk 0:00:29]} 36. Kg2 {[%clk 0:01:15]}  Bxg3 {[%clk 0:00:28]} 37. fxg3 {[%clk 0:01:14]}  Rg5 {[%clk 0:00:28]} 38. Rc5 {[%clk 0:01:07]}  f5 {[%clk 0:00:24]} 39. Rc7 {[%clk 0:01:00]}  Rg4 {[%clk 0:00:20]} 40. Kf3 {[%clk 0:00:53]}  Kf8 {[%clk 0:00:20]} 41. Rh7 {[%clk 0:00:45]}  Re4 {[%clk 0:00:16]} 42. Rh4 {[%clk 0:00:40]}  Re7 {[%clk 0:00:13]} 43. g4 {[%clk 0:00:38]}  Kg7 {[%clk 0:00:13]} 44. g5 {[%clk 0:00:28]}  Ra7 {[%clk 0:00:11]} 45. Rh1 {[%clk 0:00:28]}  Kf7 {[%clk 0:00:07]} 46. Rh7+ {[%clk 0:00:25]} 1-0


[Site "https://www.chess.com"]

[Event "Titled Tuesday Blitz September 27 Early 2022"]
[White "Quispe Santacruz, Javier"]
[Black "Jumanov, Elbek"]
[WhiteFideId "3800920"]
[BlackFideId "14202905"]
[WhiteElo "1930"]
[BlackElo "2054"]
[Result "0-1"]
[Round "09"]
[TimeControl "180+1"]
[Date "2022.09.27"]
[WhiteClock "0:00:14"]
[BlackClock "0:00:34"]

1. e4 {[%clk 0:03:00]}  c5 {[%clk 0:02:59]} 2. Nf3 {[%clk 0:03:00]}  e6 {[%clk 0:02:58]} 3. d4 {[%clk 0:02:59]}  cxd4 {[%clk 0:02:59]} 4. Nxd4 {[%clk 0:03:00]}  Nf6 {[%clk 0:03:00]} 5. f3 {[%clk 0:02:49]}  Nc6 {[%clk 0:02:56]} 6. Bb5 {[%clk 0:02:41]}  Nxd4 {[%clk 0:02:36]} 7. Qxd4 {[%clk 0:02:29]}  Qa5+ {[%clk 0:02:37]} 8. Nc3 {[%clk 0:02:29]}  Bb4 {[%clk 0:02:36]} 9. Bd3 {[%clk 0:02:14]}  O-O {[%clk 0:02:33]} 10. Bd2 {[%clk 0:02:13]}  d5 {[%clk 0:02:29]} 11. a3 {[%clk 0:02:11]}  Bc5 {[%clk 0:02:23]} 12. Qe5 {[%clk 0:02:00]}  Qb6 {[%clk 0:02:19]} 13. Na4 {[%clk 0:01:56]}  Bf2+ {[%clk 0:01:45]} 14. Ke2 {[%clk 0:01:56]}  Qd4 {[%clk 0:01:39]} 15. Qxd4 {[%clk 0:01:47]}  Bxd4 {[%clk 0:01:39]} 16. Bc3 {[%clk 0:01:47]}  dxe4 {[%clk 0:01:31]} 17. fxe4 {[%clk 0:01:36]}  Bxc3 {[%clk 0:01:27]} 18. Nxc3 {[%clk 0:01:37]}  Bd7 {[%clk 0:01:27]} 19. Rad1 {[%clk 0:01:35]}  Rac8 {[%clk 0:01:25]} 20. e5 {[%clk 0:01:32]}  Nd5 {[%clk 0:01:15]} 21. Nxd5 {[%clk 0:01:12]}  exd5 {[%clk 0:01:15]} 22. c3 {[%clk 0:01:09]}  Bg4+ {[%clk 0:01:15]} 23. Ke3 {[%clk 0:01:06]}  Bxd1 {[%clk 0:01:16]} 24. Rxd1 {[%clk 0:01:06]}  Rfe8 {[%clk 0:01:09]} 25. Kd4 {[%clk 0:01:03]}  Rcd8 {[%clk 0:01:09]} 26. Rf1 {[%clk 0:00:55]}  Re7 {[%clk 0:00:59]} 27. h3 {[%clk 0:00:44]}  Rde8 {[%clk 0:00:51]} 28. Kxd5 {[%clk 0:00:30]}  Rxe5+ {[%clk 0:00:49]} 29. Kc4 {[%clk 0:00:27]}  f6 {[%clk 0:00:42]} 30. Kb3 {[%clk 0:00:24]}  Kf7 {[%clk 0:00:39]} 31. Bc4+ {[%clk 0:00:21]}  Ke7 {[%clk 0:00:36]} 32. Rd1 {[%clk 0:00:21]}  Rd8 {[%clk 0:00:35]} 33. Rf1 {[%clk 0:00:19]}  b5 {[%clk 0:00:35]} 34. Be2 {[%clk 0:00:14]}  Rxe2 {[%clk 0:00:34]} 0-1


[Site "https://www.chess.com"]

[Event "Titled Tuesday Blitz September 27 Early 2022"]
[White "Roque Sola, Gisela"]
[Black "Pinheiro, Iung Alicio de O."]
[WhiteFideId "5120241"]
[BlackFideId "2104350"]
[WhiteElo "1845"]
[BlackElo "2283"]
[Result "0-1"]
[Round "09"]
[TimeControl "180+1"]
[Date "2022.09.27"]
[WhiteClock "0:00:08"]
[BlackClock "0:00:22"]

1. e4 {[%clk 0:03:00]}  c5 {[%clk 0:02:58]} 2. Nf3 {[%clk 0:02:59]}  Nc6 {[%clk 0:02:53]} 3. d4 {[%clk 0:02:59]}  cxd4 {[%clk 0:02:53]} 4. Nxd4 {[%clk 0:03:00]}  e5 {[%clk 0:02:53]} 5. Nb5 {[%clk 0:02:59]}  d6 {[%clk 0:02:53]} 6. N1c3 {[%clk 0:02:58]}  a6 {[%clk 0:02:52]} 7. Na3 {[%clk 0:02:59]}  b5 {[%clk 0:02:53]} 8. Nd5 {[%clk 0:02:58]}  Nge7 {[%clk 0:02:53]} 9. c4 {[%clk 0:02:52]}  Nxd5 {[%clk 0:02:51]} 10. exd5 {[%clk 0:02:46]}  Nd4 {[%clk 0:02:51]} 11. cxb5 {[%clk 0:02:46]}  Be7 {[%clk 0:02:41]} 12. Be3 {[%clk 0:02:40]}  Nf5 {[%clk 0:02:39]} 13. bxa6 {[%clk 0:02:35]}  Nxe3 {[%clk 0:02:21]} 14. fxe3 {[%clk 0:02:34]}  O-O {[%clk 0:02:22]} 15. Bd3 {[%clk 0:02:32]}  Bg5 {[%clk 0:02:01]} 16. Qe2 {[%clk 0:02:22]}  Qa5+ {[%clk 0:01:27]} 17. Qd2 {[%clk 0:02:18]}  Qc5 {[%clk 0:01:15]} 18. Nc2 {[%clk 0:02:00]}  f5 {[%clk 0:01:11]} 19. b4 {[%clk 0:01:55]}  Qxd5 {[%clk 0:01:05]} 20. Qe2 {[%clk 0:01:42]}  Be6 {[%clk 0:00:50]} 21. Rc1 {[%clk 0:01:39]}  e4 {[%clk 0:00:46]} 22. Bb5 {[%clk 0:01:35]}  f4 {[%clk 0:00:29]} 23. Nd4 {[%clk 0:01:30]}  f3 {[%clk 0:00:28]} 24. Qc4 {[%clk 0:01:21]}  Bxe3 {[%clk 0:00:16]} 25. gxf3 {[%clk 0:01:16]}  exf3 {[%clk 0:00:14]} 26. Qxd5 {[%clk 0:01:14]}  Bxd5 {[%clk 0:00:14]} 27. Nc2 {[%clk 0:01:05]}  Bxc1 {[%clk 0:00:13]} 28. O-O {[%clk 0:00:59]}  Bf4 {[%clk 0:00:12]} 29. Rd1 {[%clk 0:00:56]}  Bxa2 {[%clk 0:00:11]} 30. Bc6 {[%clk 0:00:54]}  Rxa6 {[%clk 0:00:10]} 31. b5 {[%clk 0:00:54]}  Rb6 {[%clk 0:00:07]} 32. Nd4 {[%clk 0:00:50]}  Be3+ {[%clk 0:00:07]} 33. Kh1 {[%clk 0:00:48]}  f2 {[%clk 0:00:07]} 34. Nf3 {[%clk 0:00:29]}  Rxc6 {[%clk 0:00:04]} 35. bxc6 {[%clk 0:00:28]}  Rxf3 {[%clk 0:00:04]} 36. Kg2 {[%clk 0:00:23]}  Bd5 {[%clk 0:00:02]} 37. c7 {[%clk 0:00:18]}  f1=Q+ {[%clk 0:00:01]} 38. Rxf1 {[%clk 0:00:17]}  Rxf1+ {[%clk 0:00:01]} 39. Kxf1 {[%clk 0:00:18]}  Bb7 {[%clk 0:00:02]} 40. Ke2 {[%clk 0:00:18]}  Bb6 {[%clk 0:00:01]} 41. c8=Q+ {[%clk 0:00:16]}  Bxc8 {[%clk 0:00:02]} 42. Kd3 {[%clk 0:00:14]}  Bc7 {[%clk 0:00:03]} 43. Ke4 {[%clk 0:00:14]}  Kf7 {[%clk 0:00:04]} 44. Kd5 {[%clk 0:00:14]}  Ke7 {[%clk 0:00:05]} 45. h4 {[%clk 0:00:13]}  Kf7 {[%clk 0:00:05]} 46. h5 {[%clk 0:00:13]}  Be6+ {[%clk 0:00:06]} 47. Kc6 {[%clk 0:00:12]}  Bd8 {[%clk 0:00:06]} 48. Kxd6 {[%clk 0:00:12]}  h6 {[%clk 0:00:07]} 49. Ke5 {[%clk 0:00:12]}  Bg5 {[%clk 0:00:07]} 50. Ke4 {[%clk 0:00:11]}  Bg4 {[%clk 0:00:08]} 51. Ke5 {[%clk 0:00:11]}  Bxh5 {[%clk 0:00:09]} 52. Kf5 {[%clk 0:00:11]}  Bg6+ {[%clk 0:00:10]} 53. Kg4 {[%clk 0:00:11]}  Kf6 {[%clk 0:00:11]} 54. Kh3 {[%clk 0:00:10]}  h5 {[%clk 0:00:12]} 55. Kg3 {[%clk 0:00:10]}  Bf5 {[%clk 0:00:13]} 56. Kh2 {[%clk 0:00:09]}  Bh6 {[%clk 0:00:14]} 57. Kg3 {[%clk 0:00:09]}  g5 {[%clk 0:00:14]} 58. Kg2 {[%clk 0:00:09]}  g4 {[%clk 0:00:15]} 59. Kg3 {[%clk 0:00:09]}  Kg5 {[%clk 0:00:16]} 60. Kh2 {[%clk 0:00:09]}  h4 {[%clk 0:00:17]} 61. Kg1 {[%clk 0:00:09]}  g3 {[%clk 0:00:18]} 62. Kg2 {[%clk 0:00:09]}  Kg4 {[%clk 0:00:19]} 63. Kh1 {[%clk 0:00:09]}  h3 {[%clk 0:00:20]} 64. Kg1 {[%clk 0:00:09]}  Be4 {[%clk 0:00:21]} 65. Kf1 {[%clk 0:00:08]}  Be3 {[%clk 0:00:22]} 0-1


[Site "https://www.chess.com"]

[Event "Titled Tuesday Blitz September 27 Early 2022"]
[White "Sadilek, Peter"]
[Black "Stanisz, Patryk"]
[WhiteFideId "1616439"]
[BlackFideId "1123106"]
[WhiteElo "2145"]
[BlackElo "1833"]
[Result "1-0"]
[Round "09"]
[TimeControl "180+1"]
[Date "2022.09.27"]
[WhiteClock "0:00:47"]
[BlackClock "0:00:04"]

1. d4 {[%clk 0:02:54]}  d5 {[%clk 0:02:58]} 2. c4 {[%clk 0:02:54]}  c6 {[%clk 0:02:58]} 3. Nf3 {[%clk 0:02:55]}  Nf6 {[%clk 0:02:59]} 4. Nc3 {[%clk 0:02:56]}  e6 {[%clk 0:02:57]} 5. e3 {[%clk 0:02:55]}  Nbd7 {[%clk 0:02:57]} 6. Be2 {[%clk 0:02:55]}  dxc4 {[%clk 0:02:56]} 7. a4 {[%clk 0:02:55]}  Bd6 {[%clk 0:02:51]} 8. O-O {[%clk 0:02:47]}  O-O {[%clk 0:02:48]} 9. Bxc4 {[%clk 0:02:42]}  e5 {[%clk 0:02:48]} 10. h3 {[%clk 0:02:42]}  Qe7 {[%clk 0:02:42]} 11. Nh4 {[%clk 0:02:40]}  g6 {[%clk 0:02:40]} 12. f4 {[%clk 0:02:40]}  exd4 {[%clk 0:02:31]} 13. exd4 {[%clk 0:02:40]}  Nb6 {[%clk 0:02:23]} 14. Bb3 {[%clk 0:02:30]}  Nfd5 {[%clk 0:02:16]} 15. Qe1 {[%clk 0:02:26]}  Re8 {[%clk 0:02:01]} 16. Qxe7 {[%clk 0:02:25]}  Rxe7 {[%clk 0:01:53]} 17. f5 {[%clk 0:02:22]}  Bg3 {[%clk 0:01:37]} 18. Bg5 {[%clk 0:01:37]}  Re8 {[%clk 0:01:02]} 19. fxg6 {[%clk 0:01:33]}  hxg6 {[%clk 0:01:03]} 20. Rf3 {[%clk 0:01:28]}  Be1 {[%clk 0:00:44]} 21. a5 {[%clk 0:01:25]}  Nxc3 {[%clk 0:00:33]} 22. Bxf7+ {[%clk 0:01:21]}  Kg7 {[%clk 0:00:21]} 23. Bxe8 {[%clk 0:01:19]}  Bxh4 {[%clk 0:00:21]} 24. Rf7+ {[%clk 0:01:16]}  Kg8 {[%clk 0:00:21]} 25. Bxh4 {[%clk 0:01:17]}  Ne2+ {[%clk 0:00:17]} 26. Kf2 {[%clk 0:01:17]}  Be6 {[%clk 0:00:15]} 27. Kxe2 {[%clk 0:01:14]}  Bc4+ {[%clk 0:00:11]} 28. Kf2 {[%clk 0:01:11]}  Rxe8 {[%clk 0:00:09]} 29. Rxb7 {[%clk 0:01:11]}  Nd5 {[%clk 0:00:06]} 30. Re1 {[%clk 0:01:09]}  Rf8+ {[%clk 0:00:07]} 31. Kg1 {[%clk 0:01:07]}  a6 {[%clk 0:00:04]} 32. Be7 {[%clk 0:01:03]}  Rf7 {[%clk 0:00:03]} 33. Rb8+ {[%clk 0:01:02]}  Kg7 {[%clk 0:00:02]} 34. Bd6 {[%clk 0:01:03]}  Nf4 {[%clk 0:00:01]} 35. Be5+ {[%clk 0:01:04]}  Kh6 {[%clk 0:00:01]} 36. Rh8+ {[%clk 0:01:03]}  Kg5 {[%clk 0:00:02]} 37. Kh2 {[%clk 0:00:55]}  Ne2 {[%clk 0:00:02]} 38. Rxe2 {[%clk 0:00:52]}  Rf2 {[%clk 0:00:02]} 39. Kg3 {[%clk 0:00:53]}  Rxe2 {[%clk 0:00:02]} 40. h4+ {[%clk 0:00:53]}  Kf5 {[%clk 0:00:02]} 41. Rf8+ {[%clk 0:00:52]}  Ke4 {[%clk 0:00:02]} 42. Rf6 {[%clk 0:00:51]}  Kd5 {[%clk 0:00:03]} 43. Rxg6 {[%clk 0:00:51]}  Rxb2 {[%clk 0:00:04]} 44. Kf3 {[%clk 0:00:48]}  Ra2 {[%clk 0:00:04]} 45. Rd6# {[%clk 0:00:47]} 1-0


[Site "https://www.chess.com"]

[Event "Titled Tuesday Blitz September 27 Early 2022"]
[White "Samaganova, Aleksandra"]
[Black "Balabayeva, Xeniya"]
[WhiteFideId "13800221"]
[BlackFideId "13719688"]
[WhiteElo "1864"]
[BlackElo "1895"]
[Result "0-1"]
[Round "09"]
[TimeControl "180+1"]
[Date "2022.09.27"]
[WhiteClock "0:00:03"]
[BlackClock "0:00:18"]

1. c4 {[%clk 0:03:00]}  e6 {[%clk 0:02:49]} 2. Nc3 {[%clk 0:03:00]}  d5 {[%clk 0:02:49]} 3. e3 {[%clk 0:03:00]}  Nf6 {[%clk 0:02:47]} 4. Nf3 {[%clk 0:02:59]}  c5 {[%clk 0:02:45]} 5. d4 {[%clk 0:02:57]}  cxd4 {[%clk 0:02:45]} 6. exd4 {[%clk 0:02:57]}  Nc6 {[%clk 0:02:44]} 7. cxd5 {[%clk 0:02:57]}  Nxd5 {[%clk 0:02:42]} 8. Bd3 {[%clk 0:02:57]}  Be7 {[%clk 0:02:38]} 9. O-O {[%clk 0:02:56]}  h6 {[%clk 0:02:38]} 10. Re1 {[%clk 0:02:56]}  O-O {[%clk 0:02:33]} 11. a3 {[%clk 0:02:55]}  Nf6 {[%clk 0:02:28]} 12. Bc2 {[%clk 0:02:48]}  b6 {[%clk 0:02:24]} 13. Qd3 {[%clk 0:02:42]}  Bb7 {[%clk 0:02:23]} 14. Bf4 {[%clk 0:02:34]}  Rc8 {[%clk 0:02:22]} 15. Rad1 {[%clk 0:02:29]}  Na5 {[%clk 0:02:17]} 16. Be5 {[%clk 0:02:11]}  g6 {[%clk 0:02:04]} 17. Nh4 {[%clk 0:01:43]}  Qe8 {[%clk 0:01:42]} 18. Qh3 {[%clk 0:01:13]}  Nd5 {[%clk 0:01:05]} 19. Nxg6 {[%clk 0:00:46]}  fxg6 {[%clk 0:01:01]} 20. Qxh6 {[%clk 0:00:41]}  Bf6 {[%clk 0:00:59]} 21. Bxg6 {[%clk 0:00:38]}  Qe7 {[%clk 0:00:52]} 22. Bd6 {[%clk 0:00:18]}  Qg7 {[%clk 0:00:44]} 23. Bxf8 {[%clk 0:00:17]}  Rxf8 {[%clk 0:00:40]} 24. Qh5 {[%clk 0:00:17]}  Nf4 {[%clk 0:00:37]} 25. Qg4 {[%clk 0:00:05]}  Qxg6 {[%clk 0:00:35]} 26. Qxg6+ {[%clk 0:00:04]}  Nxg6 {[%clk 0:00:35]} 27. Rxe6 {[%clk 0:00:04]}  Nf4 {[%clk 0:00:35]} 28. Re3 {[%clk 0:00:02]}  Bxg2 {[%clk 0:00:32]} 29. Rg3+ {[%clk 0:00:02]}  Kf7 {[%clk 0:00:30]} 30. Rxg2 {[%clk 0:00:02]}  Nxg2 {[%clk 0:00:30]} 31. Kxg2 {[%clk 0:00:03]}  Nc4 {[%clk 0:00:29]} 32. b3 {[%clk 0:00:03]}  Nd6 {[%clk 0:00:27]} 33. Nd5 {[%clk 0:00:03]}  Nf5 {[%clk 0:00:26]} 34. Nf4 {[%clk 0:00:03]}  Bxd4 {[%clk 0:00:25]} 35. Kf3 {[%clk 0:00:02]}  Bc5 {[%clk 0:00:25]} 36. b4 {[%clk 0:00:02]}  Bd6 {[%clk 0:00:23]} 37. Ke4 {[%clk 0:00:01]}  Bxf4 {[%clk 0:00:22]} 38. Kxf4 {[%clk 0:00:02]}  Ne7 {[%clk 0:00:20]} 39. Ke5 {[%clk 0:00:02]}  Ng6+ {[%clk 0:00:19]} 40. Kf5 {[%clk 0:00:02]}  Ne7+ {[%clk 0:00:18]} 41. Kg5 {[%clk 0:00:02]}  Rg8+ {[%clk 0:00:18]} 42. Kf4 {[%clk 0:00:02]}  Ke6 {[%clk 0:00:18]} 43. Re1+ {[%clk 0:00:02]}  Kd6 {[%clk 0:00:18]} 44. Rd1+ {[%clk 0:00:03]}  Nd5+ {[%clk 0:00:18]} 45. Kf3 {[%clk 0:00:02]}  Rf8+ {[%clk 0:00:19]} 46. Ke4 {[%clk 0:00:02]}  Rf4+ {[%clk 0:00:19]} 47. Kd3 {[%clk 0:00:03]}  Rxf2 {[%clk 0:00:19]} 48. h4 {[%clk 0:00:03]}  Rh2 {[%clk 0:00:18]} 0-1


[Site "https://www.chess.com"]

[Event "Titled Tuesday Blitz September 27 Early 2022"]
[White "Samunenkov, Ihor"]
[Black "Hristodoulou, Panagiotis"]
[WhiteFideId "14187086"]
[BlackFideId "4214340"]
[WhiteElo "2441"]
[BlackElo "2172"]
[Result "1-0"]
[Round "09"]
[TimeControl "180+1"]
[Date "2022.09.27"]
[WhiteClock "0:00:03"]
[BlackClock "0:00:04"]

1. d4 {[%clk 0:03:00]}  Nf6 {[%clk 0:02:59]} 2. c4 {[%clk 0:03:01]}  e6 {[%clk 0:02:57]} 3. Nf3 {[%clk 0:03:01]}  Bb4+ {[%clk 0:02:57]} 4. Bd2 {[%clk 0:03:00]}  a5 {[%clk 0:02:56]} 5. e3 {[%clk 0:02:44]}  O-O {[%clk 0:02:50]} 6. Bd3 {[%clk 0:02:43]}  d6 {[%clk 0:02:49]} 7. O-O {[%clk 0:02:40]}  Nbd7 {[%clk 0:02:49]} 8. Bc1 {[%clk 0:02:18]}  a4 {[%clk 0:02:37]} 9. a3 {[%clk 0:02:18]}  Ba5 {[%clk 0:02:36]} 10. Qxa4 {[%clk 0:02:18]}  e5 {[%clk 0:02:37]} 11. Qc2 {[%clk 0:01:55]}  Qe7 {[%clk 0:02:34]} 12. Nbd2 {[%clk 0:01:41]}  Re8 {[%clk 0:02:33]} 13. Ng5 {[%clk 0:01:23]}  h6 {[%clk 0:02:28]} 14. Nge4 {[%clk 0:01:22]}  c6 {[%clk 0:02:28]} 15. c5 {[%clk 0:01:17]}  dxc5 {[%clk 0:02:06]} 16. dxc5 {[%clk 0:01:16]}  Bxd2 {[%clk 0:02:05]} 17. Nxf6+ {[%clk 0:01:09]}  Qxf6 {[%clk 0:01:58]} 18. Bxd2 {[%clk 0:01:10]}  Qe7 {[%clk 0:01:57]} 19. b4 {[%clk 0:01:08]}  e4 {[%clk 0:01:57]} 20. Bc4 {[%clk 0:01:03]}  Qg5 {[%clk 0:01:45]} 21. Kh1 {[%clk 0:00:49]}  Ne5 {[%clk 0:01:43]} 22. Be2 {[%clk 0:00:41]}  Bf5 {[%clk 0:01:42]} 23. Bc3 {[%clk 0:00:36]}  Nf3 {[%clk 0:01:32]} 24. Qb2 {[%clk 0:00:23]}  Nh4 {[%clk 0:01:31]} 25. Rg1 {[%clk 0:00:22]}  Re6 {[%clk 0:01:28]} 26. Be5 {[%clk 0:00:20]}  Bg4 {[%clk 0:01:04]} 27. Bf4 {[%clk 0:00:20]}  Qh5 {[%clk 0:01:03]} 28. Bxg4 {[%clk 0:00:15]}  Qxg4 {[%clk 0:01:03]} 29. Bg3 {[%clk 0:00:14]}  Nf5 {[%clk 0:00:58]} 30. Rad1 {[%clk 0:00:14]}  h5 {[%clk 0:00:57]} 31. Be5 {[%clk 0:00:07]}  Nh4 {[%clk 0:00:45]} 32. h3 {[%clk 0:00:06]}  Qf5 {[%clk 0:00:42]} 33. Bg3 {[%clk 0:00:03]}  Ng6 {[%clk 0:00:33]} 34. Rd6 {[%clk 0:00:03]}  h4 {[%clk 0:00:31]} 35. Bh2 {[%clk 0:00:03]}  Ne7 {[%clk 0:00:27]} 36. Rgd1 {[%clk 0:00:03]}  Nd5 {[%clk 0:00:25]} 37. Rxe6 {[%clk 0:00:03]}  fxe6 {[%clk 0:00:25]} 38. Be5 {[%clk 0:00:03]}  Kf7 {[%clk 0:00:20]} 39. Kg1 {[%clk 0:00:02]}  Kg6 {[%clk 0:00:19]} 40. Bd4 {[%clk 0:00:03]}  Re8 {[%clk 0:00:15]} 41. Rf1 {[%clk 0:00:03]}  e5 {[%clk 0:00:15]} 42. Bc3 {[%clk 0:00:04]}  Kf6 {[%clk 0:00:15]} 43. Bd2 {[%clk 0:00:02]}  Ke6 {[%clk 0:00:14]} 44. f3 {[%clk 0:00:02]}  exf3 {[%clk 0:00:15]} 45. Rxf3 {[%clk 0:00:03]}  Qe4 {[%clk 0:00:15]} 46. Qc1 {[%clk 0:00:02]}  Rd8 {[%clk 0:00:15]} 47. Qf1 {[%clk 0:00:02]}  Nf6 {[%clk 0:00:16]} 48. Be1 {[%clk 0:00:02]}  Rd3 {[%clk 0:00:14]} 49. b5 {[%clk 0:00:02]}  Rxe3 {[%clk 0:00:14]} 50. bxc6 {[%clk 0:00:03]}  bxc6 {[%clk 0:00:14]} 51. Rxe3 {[%clk 0:00:02]}  Qxe3+ {[%clk 0:00:14]} 52. Bf2 {[%clk 0:00:02]}  Qxa3 {[%clk 0:00:14]} 53. Qc4+ {[%clk 0:00:03]}  Ke7 {[%clk 0:00:15]} 54. Bxh4 {[%clk 0:00:02]}  Qe3+ {[%clk 0:00:12]} 55. Bf2 {[%clk 0:00:02]}  Qe4 {[%clk 0:00:11]} 56. Qa6 {[%clk 0:00:02]}  Qd5 {[%clk 0:00:10]} 57. Qb7+ {[%clk 0:00:03]}  Nd7 {[%clk 0:00:11]} 58. Qb2 {[%clk 0:00:02]}  Ke6 {[%clk 0:00:11]} 59. Qe2 {[%clk 0:00:02]}  Nf6 {[%clk 0:00:08]} 60. Qe3 {[%clk 0:00:02]}  Kf7 {[%clk 0:00:06]} 61. Kh2 {[%clk 0:00:02]}  e4 {[%clk 0:00:03]} 62. Bg3 {[%clk 0:00:02]}  Qf5 {[%clk 0:00:04]} 63. Bd6 {[%clk 0:00:02]}  Nd5 {[%clk 0:00:04]} 64. Qa3 {[%clk 0:00:02]}  e3 {[%clk 0:00:05]} 65. Qa7+ {[%clk 0:00:02]}  Kg6 {[%clk 0:00:05]} 66. Qa2 {[%clk 0:00:02]}  Qe4 {[%clk 0:00:05]} 67. Qe2 {[%clk 0:00:02]}  Nc3 {[%clk 0:00:05]} 68. Qe1 {[%clk 0:00:02]}  e2 {[%clk 0:00:05]} 69. Bg3 {[%clk 0:00:02]}  Nd5 {[%clk 0:00:05]} 70. Qf2 {[%clk 0:00:02]}  Ne7 {[%clk 0:00:05]} 71. Qf3 {[%clk 0:00:01]}  Qxf3 {[%clk 0:00:05]} 72. gxf3 {[%clk 0:00:02]}  Nf5 {[%clk 0:00:05]} 73. Be1 {[%clk 0:00:03]}  Nd4 {[%clk 0:00:06]} 74. Kg2 {[%clk 0:00:03]}  Kf5 {[%clk 0:00:06]} 75. Kf2 {[%clk 0:00:04]}  Kf4 {[%clk 0:00:07]} 76. Bc3 {[%clk 0:00:02]}  Nxf3 {[%clk 0:00:07]} 77. Kxe2 {[%clk 0:00:01]}  g6 {[%clk 0:00:08]} 78. Kf2 {[%clk 0:00:02]}  Ke4 {[%clk 0:00:07]} 79. Kg3 {[%clk 0:00:02]}  Ng5 {[%clk 0:00:05]} 80. Kg4 {[%clk 0:00:02]}  Ne6 {[%clk 0:00:06]} 81. h4 {[%clk 0:00:02]}  Kd5 {[%clk 0:00:04]} 82. Bb4 {[%clk 0:00:02]}  Kc4 {[%clk 0:00:05]} 83. Ba3 {[%clk 0:00:02]}  Kb3 {[%clk 0:00:05]} 84. Bc1 {[%clk 0:00:02]}  Nxc5 {[%clk 0:00:05]} 85. Kg5 {[%clk 0:00:03]}  Ne4+ {[%clk 0:00:04]} 86. Kxg6 {[%clk 0:00:03]} 1-0


[Site "https://www.chess.com"]

[Event "Titled Tuesday Blitz September 27 Early 2022"]
[White "Saucey, Michel"]
[Black "Fawzy, Adham"]
[WhiteFideId "601845"]
[BlackFideId "10613129"]
[WhiteElo "2253"]
[BlackElo "2541"]
[Result "1/2-1/2"]
[Round "09"]
[TimeControl "180+1"]
[Date "2022.09.27"]
[WhiteClock "0:02:24"]
[BlackClock "0:02:06"]

1. d4 {[%clk 0:03:00]}  d5 {[%clk 0:02:59]} 2. Nf3 {[%clk 0:03:00]}  Nf6 {[%clk 0:02:59]} 3. c4 {[%clk 0:03:00]}  c6 {[%clk 0:02:59]} 4. Nc3 {[%clk 0:02:59]}  e6 {[%clk 0:02:59]} 5. e3 {[%clk 0:02:59]}  Nbd7 {[%clk 0:02:59]} 6. Qc2 {[%clk 0:02:58]}  Bd6 {[%clk 0:02:58]} 7. b3 {[%clk 0:02:56]}  O-O {[%clk 0:02:53]} 8. Be2 {[%clk 0:02:56]}  b6 {[%clk 0:02:52]} 9. O-O {[%clk 0:02:54]}  Bb7 {[%clk 0:02:52]} 10. Bb2 {[%clk 0:02:54]}  Qe7 {[%clk 0:02:48]} 11. e4 {[%clk 0:02:53]}  dxe4 {[%clk 0:02:45]} 12. Nxe4 {[%clk 0:02:52]}  Nxe4 {[%clk 0:02:46]} 13. Qxe4 {[%clk 0:02:52]}  Nf6 {[%clk 0:02:46]} 14. Qh4 {[%clk 0:02:52]}  c5 {[%clk 0:02:44]} 15. dxc5 {[%clk 0:02:51]}  Bxc5 {[%clk 0:02:44]} 16. Bxf6 {[%clk 0:02:41]}  Qxf6 {[%clk 0:02:45]} 17. Qxf6 {[%clk 0:02:40]}  gxf6 {[%clk 0:02:46]} 18. Rfd1 {[%clk 0:02:38]}  Rfd8 {[%clk 0:02:41]} 19. Rxd8+ {[%clk 0:02:36]}  Rxd8 {[%clk 0:02:42]} 20. Rd1 {[%clk 0:02:36]}  Rxd1+ {[%clk 0:02:35]} 21. Bxd1 {[%clk 0:02:36]}  Be4 {[%clk 0:02:32]} 22. Kf1 {[%clk 0:02:25]}  Bxf3 {[%clk 0:02:11]} 23. Bxf3 {[%clk 0:02:24]}  Kg7 {[%clk 0:02:06]} 1/2-1/2


[Site "https://www.chess.com"]